fUSD/lending_fUSD_20260127
["ID","MTS","AMOUNT","RATE_DAILY","PERIOD"]
[403768315,1769529041586,-500.0,0.00016076,2]
[403768317,1769529041596,-500.0,0.00016082,2]
[403768319,1769529041606,-225.18697532,0.00016095,2]
[403768321,1769529041619,-1139.862,0.00016102,2]
[403768322,1769529041630,-233.51889341,0.0001615,2]
[403768324,1769529041644,-284.02,0.00016204,2]
[403768326,1769529041658,-242.15909246,0.00016205,2]
[403768328,1769529041670,-1157.15,0.00016241,2]
[403768330,1769529041680,-500.0,0.00016247,2]
[403768332,1769529041692,-251.11897888,0.0001626,2]
[403768334,1769529041701,-260.4103811,0.00016315,2]
[403768336,1769529041712,-270.0455652,0.0001637,2]
[403768338,1769529041722,-217.113082,0.00016373,2]
[403768341,1769529041732,-504.6451351,0.00016373,2]
[403768343,1769529041744,-500.81908934,0.00016373,2]
[403768345,1769529041754,-504.16176982,0.00016373,2]
[403768347,1769529041765,-500.0,0.00016373,2]
[403768349,1769529041776,-280.03725112,0.00016425,2]
[403768351,1769529041787,-151.0,0.00016435,2]
[403768353,1769529041798,-2343.45,0.00016438,2]
[403768355,1769529041809,-2343.45,0.00016438,2]
[403768357,1769529041820,-2343.45,0.00016438,2]
[403768359,1769529041831,-2343.45,0.00016438,2]
[403768361,1769529041843,-2343.45,0.00016438,2]
[403768364,1769529041861,-2343.45,0.00016438,2]
[403768366,1769529041871,-2343.45,0.00016438,2]
[403768368,1769529041882,-2343.45,0.00016438,2]
[403768371,1769529041892,-2343.45,0.00016438,2]
[403768372,1769529041904,-2343.45,0.00016438,2]
[403768373,1769529041914,-2343.45,0.00016438,2]
[403768374,1769529041925,-2343.45,0.00016438,2]
[403768375,1769529041936,-2343.45,0.00016438,2]
[403768376,1769529041947,-2343.45,0.00016438,2]
[403768377,1769529041958,-2343.45,0.00016438,2]
[403768378,1769529041969,-2343.45,0.00016438,2]
[403768379,1769529041980,-2343.45,0.00016438,2]
[403768380,1769529041991,-2343.45,0.00016438,2]
[403768381,1769529042002,-2343.45,0.00016438,2]
[403768382,1769529042013,-2343.45,0.00016438,2]
[403768383,1769529042024,-2343.45,0.00016438,2]
[403768384,1769529042036,-2343.45,0.00016438,2]
[403768385,1769529042047,-2343.45,0.00016438,2]
[403768386,1769529042058,-2343.48607744,0.00016438,2]
[403768387,1769529042068,-573.37963552,0.00016438,2]
[403768388,1769529042079,-500.0,0.00016438,2]
[403768389,1769529042090,-500.0,0.00016438,2]
[403768391,1769529042101,-500.0,0.00016438,2]
[403768393,1769529042111,-500.0,0.00016438,2]
[403768395,1769529042121,-500.0,0.00016438,2]
[403768397,1769529042131,-500.0,0.00016438,2]
[403768400,1769529042142,-500.0,0.00016438,2]
[403768402,1769529042152,-500.0,0.00016438,2]
[403768404,1769529042163,-332.93649974,0.00016438,2]
[403768406,1769529042173,-500.0,0.00016438,2]
[403768408,1769529042183,-500.0,0.00016438,2]
[403768410,1769529042193,-500.0,0.00016438,2]
[403768412,1769529042203,-500.0,0.00016438,2]
[403768414,1769529042213,-500.0,0.00016438,2]
[403768416,1769529042224,-500.0,0.00016438,2]
[403768419,1769529042235,-500.0,0.00016438,2]
[403768421,1769529042244,-500.0,0.00016438,2]
[403768423,1769529042254,-500.0,0.00016438,2]
[403768425,1769529042265,-500.0,0.00016438,2]
[403768427,1769529042276,-500.0,0.00016438,2]
[403768429,1769529042286,-500.0,0.00016438,2]
[403768431,1769529042296,-500.0,0.00016438,2]
[403768433,1769529042306,-500.0,0.00016438,2]
[403768435,1769529042317,-500.0,0.00016438,2]
[403768437,1769529042327,-500.0,0.00016438,2]
[403768439,1769529042338,-500.0,0.00016438,2]
[403768441,1769529042348,-500.0,0.00016438,2]
[403768443,1769529042358,-500.0,0.00016438,2]
[403768446,1769529042368,-500.0,0.00016438,2]
[403768448,1769529042378,-500.0,0.00016438,2]
[403768450,1769529042388,-500.0,0.00016438,2]
[403768452,1769529042398,-300.0,0.00016438,2]
[403768454,1769529042408,-284.02,0.00016478,2]
[403768456,1769529042417,-854.2589148,0.00016478,2]
[403768458,1769529042428,-290.39862941,0.0001648,2]
[403768460,1769529042438,-1000.0,0.00016515,2]
[403768462,1769529042448,-500.0,0.00016521,2]
[403768464,1769529042458,-178.62,0.00016527,2]
[403768466,1769529042468,-301.1433787,0.00016535,2]
[403768468,1769529042478,-1102.36,0.00016705,2]
[403768470,1769529042488,-165.14,0.00016712,2]
[403768472,1769529042498,-510.0,0.00016719,2]
[403768475,1769529042508,-284.02,0.00016752,2]
[403768477,1769529042518,-420.0,0.00016757,2]
[403768479,1769529042528,-600.0,0.0001683,2]
[403768481,1769529042538,-277.36496974,0.0001683,2]
[403768483,1769529042548,-195.0,0.0001683,2]
[403768485,1769529042557,-250.0,0.0001683,2]
[403768487,1769529042568,-195.0,0.0001683,2]
[403768489,1769529042581,-300.0,0.0001683,2]
[403768491,1769529042591,-1680.0,0.00016842,2]
[403768493,1769529042600,-156.73,0.0001685,2]
[403768495,1769529042611,-187.78066829,0.00016921,2]
[403768497,1769529042621,-289.04,0.0001694,2]
[403768499,1769529042631,-287.83520275,0.00016948,2]
[403768502,1769529042642,-379.65,0.00017007,2]
[403768504,1769529042652,-8592.0,0.00017008,2]
[403768506,1769529042662,-284.03,0.00017026,2]
[403768508,1769529042673,-885.86649465,0.00017026,2]
[403768510,1769529042683,-1000.0,0.00017112,2]
[403768512,1769529042693,-334.5472959,0.00017299,2]
[403768514,1769529042703,-6722.14975963,0.00017507,2]
[403768516,1769529042712,-918.64355495,0.00017574,2]
[403768518,1769529042723,-800.0,0.000176,6]
[403768520,1769529042733,-239.88573265,0.00017699,2]
[403768522,1769529042744,-500.0,0.00017699,2]
[403768524,1769529042754,-150.0,0.00017699,2]
[403768526,1769529042763,-150.0,0.00017699,2]
[403768529,1769529042773,-150.0,0.00017699,2]
[403768531,1769529042783,-150.0,0.00017699,2]
[403768533,1769529042793,-500.0,0.00017699,2]
[403768535,1769529042803,-500.0,0.00017699,2]
[403768537,1769529042814,-150.0,0.00017699,2]
[403768539,1769529042824,-500.0,0.00017699,2]
[403768541,1769529042834,-500.0,0.00017699,2]
[403768543,1769529042845,-500.0,0.00017699,2]
[403768545,1769529042855,-150.0,0.00017699,2]
[403768547,1769529042865,-500.0,0.00017699,2]
[403768549,1769529042875,-150.0,0.00017699,2]
[403768552,1769529042884,-500.0,0.00017699,2]
[403768554,1769529042894,-150.0,0.00017699,2]
[403768556,1769529042904,-230.04153291,0.00017699,2]
[403768558,1769529042914,-150.0,0.00017699,2]
[403768560,1769529042923,-500.0,0.00017699,2]
[403768562,1769529042934,-150.0,0.00017699,2]
[403768564,1769529042944,-150.0,0.00017699,2]
[403768566,1769529042954,-150.0,0.00017699,2]
[403768568,1769529042963,-150.0,0.00017699,2]
[403768569,1769529042973,-500.0,0.00017699,2]
[403768570,1769529042983,-155.44287268,0.00017699,2]
[403768571,1769529042993,-150.50268602,0.00017699,2]
[403768572,1769529043007,-150.0,0.00017699,2]
[403768573,1769529043018,-500.0,0.00017699,2]
[403768574,1769529043029,-150.0,0.00017699,2]
[403768575,1769529043039,-500.0,0.00017699,2]
[403768576,1769529043049,-500.0,0.00017699,2]
[403768577,1769529043059,-150.0,0.00017699,2]
[403768578,1769529043070,-500.0,0.00017699,2]
[403768579,1769529043080,-500.0,0.00017699,2]
[403768580,1769529043091,-500.0,0.00017699,2]
[403768581,1769529043101,-500.0,0.00017699,2]
[403768582,1769529043112,-500.0,0.00017699,2]
[403768583,1769529043122,-500.0,0.00017699,2]
[403768584,1769529043132,-150.0,0.00017699,2]
[403768585,1769529043143,-500.0,0.00017699,2]
[403768586,1769529043154,-500.0,0.00017699,2]
[403768587,1769529043164,-500.0,0.00017699,2]
[403768588,1769529043175,-150.0,0.00017699,2]
[403768589,1769529043184,-500.0,0.00017699,2]
[403768590,1769529043195,-1100.0,0.000177,6]
[403768591,1769529043205,-5532.0,0.000177,5]
[403768592,1769529043216,-290.75031341,0.00017702,2]
[403768593,1769529043226,-434.94508022,0.00017702,2]
[403768594,1769529043237,-588.4956,0.00017702,2]
[403768596,1769529043248,-6722.14975963,0.00017704,2]
[403768597,1769529043259,-1000.0,0.00017709,2]
[403768598,1769529043269,-380.0,0.0001774,2]
[403768599,1769529043279,-396.0,0.00017741,2]
[403768600,1769529043290,-500.0,0.00017754,2]
[403768601,1769529043301,-150.0,0.00017754,2]
[403768602,1769529043311,-150.0,0.00017754,2]
[403768603,1769529043321,-150.0,0.00017754,2]
[403768604,1769529043332,-500.0,0.00017754,2]
[403768605,1769529043343,-500.0,0.00017754,2]
[403768606,1769529043353,-150.0,0.00017754,2]
[403768607,1769529043363,-500.0,0.00017754,2]
[403768608,1769529043374,-500.0,0.00017754,2]
[403768609,1769529043388,-500.0,0.00017754,2]
[403768611,1769529043399,-150.0,0.00017754,2]
[403768613,1769529043410,-500.0,0.00017754,2]
[403768614,1769529043420,-161.95810683,0.00017754,2]
[403768616,1769529043431,-500.0,0.00017754,2]
[403768617,1769529043441,-500.0,0.00017754,2]
[403768619,1769529043452,-150.0,0.00017754,2]
[403768621,1769529043462,-150.76261247,0.00017754,2]
[403768622,1769529043472,-150.0,0.00017754,2]
[403768623,1769529043484,-568.740597,0.00017754,2]
[403768624,1769529043496,-150.0,0.00017754,2]
[403768625,1769529043506,-500.0,0.00017754,2]
[403768626,1769529043517,-150.0,0.00017754,2]
[403768627,1769529043527,-500.0,0.00017754,2]
[403768628,1769529043537,-500.0,0.00017754,2]
[403768629,1769529043548,-150.0,0.00017754,2]
[403768630,1769529043558,-500.0,0.00017754,2]
[403768631,1769529043570,-500.0,0.00017754,2]
[403768632,1769529043583,-500.0,0.00017754,2]
[403768633,1769529043592,-500.0,0.00017754,2]
[403768634,1769529043603,-500.0,0.00017754,2]
[403768635,1769529043614,-500.0,0.00017754,2]
[403768636,1769529043625,-500.0,0.00017754,2]
[403768637,1769529043636,-500.0,0.00017754,2]
[403768638,1769529043648,-500.0,0.00017754,2]
[403768639,1769529043659,-500.0,0.00017754,2]
[403768647,1769529044478,-1426.9227,0.00017756,2]
[403768648,1769529044511,-1000.0,0.00017756,2]
[403768649,1769529044529,-6906.8305,0.00017763,2]
[403768650,1769529044539,-380.0,0.00017783,2]
[403768651,1769529044548,-156.73,0.00017787,2]
[403768652,1769529044557,-289.04,0.00017787,2]
[403768653,1769529044567,-1300.0,0.000178,6]
[403768654,1769529044581,-500.0,0.00017808,2]
[403768655,1769529044590,-500.0,0.00017809,2]
[403768656,1769529044599,-200.0,0.00017809,2]
[403768657,1769529044610,-150.0,0.00017809,2]
[403768658,1769529044620,-500.0,0.00017809,2]
[403768659,1769529044629,-500.0,0.00017809,2]
[403768660,1769529044638,-150.0,0.00017809,2]
[403768661,1769529044649,-500.0,0.00017809,2]
[403768662,1769529044660,-500.0,0.00017809,2]
[403768663,1769529044670,-500.0,0.00017809,2]
[403768664,1769529044679,-150.71021338,0.00017809,2]
[403768665,1769529044688,-500.0,0.00017809,2]
[403768666,1769529044698,-500.0,0.00017809,2]
[403768667,1769529044708,-500.0,0.00017809,2]
[403768668,1769529044718,-150.0,0.00017809,2]
[403768669,1769529044727,-201.72695087,0.00017809,2]
[403768670,1769529044736,-251.7333692,0.00017809,2]
[403768671,1769529044745,-150.0,0.00017809,2]
[403768672,1769529044755,-200.0,0.00017809,2]
[403768673,1769529044765,-500.0,0.00017809,2]
[403768674,1769529044773,-150.0,0.00017809,2]
[403768675,1769529044783,-500.0,0.00017809,2]
[403768676,1769529044792,-500.0,0.00017809,2]
[403768677,1769529044801,-500.0,0.00017809,2]
[403768678,1769529044811,-500.0,0.00017809,2]
[403768679,1769529044820,-500.0,0.00017809,2]
[403768680,1769529044829,-500.0,0.00017809,2]
[403768681,1769529044839,-500.0,0.00017809,2]
[403768682,1769529044849,-500.0,0.00017809,2]
[403768683,1769529044859,-500.0,0.00017809,2]
[403768684,1769529044868,-500.0,0.00017809,2]
[403768685,1769529044878,-500.0,0.0001781,2]
[403768686,1769529044887,-380.0,0.00017824,2]
[403768687,1769529044896,-380.0,0.00017825,2]
[403768688,1769529044906,-396.0,0.00017833,2]
[403768689,1769529044915,-380.0,0.00017838,2]
[403768690,1769529044924,-332.0,0.00017846,2]
[403768691,1769529044934,-380.0,0.00017849,2]
[403768692,1769529044944,-511.30863973,0.00017855,2]
[403768693,1769529044954,-500.0,0.00017855,2]
[403768694,1769529044964,-500.0,0.00017855,2]
[403768695,1769529044973,-500.0,0.00017855,2]
[403768696,1769529044983,-614.29814202,0.00017855,2]
[403768697,1769529044993,-500.0,0.00017855,2]
[403768698,1769529045002,-512.76422603,0.00017855,2]
[403768699,1769529045011,-613.82,0.00017855,2]
[403768700,1769529045020,-500.0,0.00017855,2]
[403768701,1769529045029,-504.12550298,0.00017855,2]
[403768702,1769529045038,-500.0,0.00017855,2]
[403768703,1769529045048,-500.0,0.00017855,2]
[403768704,1769529045057,-576.20605499,0.00017855,2]
[403768705,1769529045066,-500.0,0.00017855,2]
[403768706,1769529045075,-500.0,0.00017855,2]
[403768707,1769529045084,-500.0,0.00017855,2]
[403768708,1769529045094,-500.0,0.00017855,2]
[403768709,1769529045103,-396.0,0.00017856,2]
[403768710,1769529045112,-500.0,0.00017863,2]
[403768711,1769529045121,-500.0,0.00017863,2]
[403768712,1769529045131,-200.0,0.00017863,2]
[403768713,1769529045140,-500.0,0.00017863,2]
[403768714,1769529045149,-500.0,0.00017863,2]
[403768715,1769529045159,-158.4322296,0.00017863,2]
[403768716,1769529045168,-563.64353549,0.00017863,2]
[403768717,1769529045177,-500.0,0.00017863,2]
[403768718,1769529045186,-500.0,0.00017863,2]
[403768719,1769529045195,-500.0,0.00017863,2]
[403768720,1769529045205,-631.96376164,0.00017863,2]
[403768721,1769529045214,-500.0,0.00017863,2]
[403768722,1769529045224,-150.0,0.00017863,2]
[403768723,1769529045233,-296.61694041,0.00017863,2]
[403768724,1769529045243,-500.0,0.00017863,2]
[403768725,1769529045253,-250.0,0.00017863,2]
[403768726,1769529045262,-500.0,0.00017863,2]
[403768727,1769529045271,-500.0,0.00017863,2]
[403768728,1769529045280,-500.0,0.00017863,2]
[403768729,1769529045289,-500.0,0.00017863,2]
[403768730,1769529045298,-500.0,0.00017863,2]
[403768731,1769529045307,-500.0,0.00017863,2]
[403768732,1769529045317,-500.0,0.00017863,2]
[403768733,1769529045326,-500.0,0.00017863,2]
[403768734,1769529045335,-500.0,0.00017863,2]
[403768735,1769529045344,-500.0,0.00017863,2]
[403768736,1769529045354,-365.0,0.00017867,2]
[403768737,1769529045364,-380.0,0.00017872,2]
[403768738,1769529045373,-380.0,0.00017886,2]
[403768739,1769529045382,-380.0,0.00017889,2]
[403768740,1769529045392,-500.0,0.00017899,2]
[403768741,1769529045401,-253.26,0.00017899,2]
[403768742,1769529045411,-500.0,0.00017899,2]
[403768743,1769529045428,-500.0,0.00017899,2]
[403768744,1769529045440,-500.0,0.00017899,2]
[403768745,1769529045449,-500.0,0.00017899,2]
[403768746,1769529045459,-500.0,0.00017899,2]
[403768747,1769529045469,-500.0,0.00017899,2]
[403768748,1769529045478,-500.0,0.00017899,2]
[403768749,1769529045489,-500.0,0.00017899,2]
[403768750,1769529045499,-500.0,0.00017899,2]
[403768751,1769529045508,-500.0,0.00017899,2]
[403768752,1769529045518,-500.0,0.00017899,2]
[403768753,1769529045527,-500.0,0.00017899,2]
[403768754,1769529045537,-500.0,0.00017899,2]
[403768755,1769529045547,-500.0,0.00017899,2]
[403768756,1769529045557,-500.0,0.00017899,2]
[403768757,1769529045569,-500.0,0.00017899,2]
[403768758,1769529045579,-558.7798383,0.00017899,2]
[403768759,1769529045588,-535.58500485,0.00017899,2]
[403768760,1769529045598,-500.0,0.00017899,2]
[403768761,1769529045608,-500.0,0.00017899,2]
[403768762,1769529045618,-500.0,0.00017899,2]
[403768763,1769529045628,-500.0,0.00017899,2]
[403768764,1769529045638,-500.0,0.00017899,2]
[403768765,1769529045650,-500.0,0.00017899,2]
[403768766,1769529045660,-500.0,0.00017899,2]
[403768767,1769529045670,-371.51446421,0.00017899,2]
[403768768,1769529045679,-500.0,0.00017899,2]
[403768769,1769529045689,-500.0,0.00017899,2]
[403768770,1769529045699,-500.0,0.00017899,2]
[403768771,1769529045708,-300.6,0.00017899,2]
[403768772,1769529045718,-6722.14975963,0.000179,2]
[403768773,1769529045728,-200.0,0.000179,6]
[403768774,1769529045738,-434.75433566,0.000179,2]
[403768775,1769529045748,-1991.09558322,0.000179,2]
[403768776,1769529045760,-287.83520275,0.000179,2]
[403768777,1769529045770,-168.31540501,0.000179,2]
[403768778,1769529045780,-375.19870368,0.00017918,2]
[403768779,1769529045789,-500.0,0.00017918,2]
[403768780,1769529045798,-500.0,0.00017918,2]
[403768781,1769529045809,-500.0,0.00017918,2]
[403768782,1769529045818,-500.0,0.00017918,2]
[403768783,1769529045827,-500.0,0.00017918,2]
[403768784,1769529045837,-500.0,0.00017918,2]
[403768785,1769529045846,-500.0,0.00017918,2]
[403768786,1769529045856,-500.0,0.00017918,2]
[403768787,1769529045865,-500.0,0.00017918,2]
[403768788,1769529045875,-153.44393732,0.00017918,2]
[403768789,1769529045884,-500.0,0.00017918,2]
[403768790,1769529045893,-500.0,0.00017918,2]
[403768791,1769529045903,-500.0,0.00017918,2]
[403768792,1769529045912,-500.0,0.00017918,2]
[403768793,1769529045922,-500.0,0.00017918,2]
[403768794,1769529045931,-500.0,0.00017918,2]
[403768795,1769529045941,-395.0,0.0001792,2]
[403768796,1769529045951,-866.0,0.0001792,2]
[403768797,1769529045961,-240.5,0.00017932,2]
[403768798,1769529045971,-380.0,0.00017946,2]
[403768799,1769529045981,-500.0,0.00017973,2]
[403768800,1769529045992,-500.0,0.00017973,2]
[403768801,1769529046002,-500.0,0.00017973,2]
[403768802,1769529046012,-500.0,0.00017973,2]
[403768803,1769529046022,-500.0,0.00017973,2]
[403768804,1769529046032,-500.0,0.00017973,2]
[403768805,1769529046042,-500.0,0.00017973,2]
[403768806,1769529046051,-500.0,0.00017973,2]
[403768807,1769529046061,-500.0,0.00017973,2]
[403768808,1769529046071,-512.71056971,0.00017973,2]
[403768809,1769529046080,-500.0,0.00017973,2]
[403768810,1769529046089,-500.0,0.00017973,2]
[403768811,1769529046099,-500.0,0.00017973,2]
[403768812,1769529046109,-500.0,0.00017973,2]
[403768813,1769529046118,-500.0,0.00017973,2]
[403768814,1769529046128,-250.0,0.00017973,2]
[403768815,1769529046138,-380.0,0.0001798,2]
[403768816,1769529046147,-898.44608791,0.00017982,2]
[403768817,1769529046157,-151.0,0.00017997,2]
[403768818,1769529046167,-186.19302321,0.00017999,2]
[403768819,1769529046176,-1050.88046112,0.00017999,5]
[403768820,1769529046186,-500.0,0.00017999,2]
[403768821,1769529046195,-534.97853507,0.00017999,2]
[403768822,1769529046204,-500.0,0.00017999,2]
[403768823,1769529046214,-500.0,0.00017999,2]
[403768825,1769529046223,-425.78461427,0.00017999,2]
[403768826,1769529046233,-1100003.72767541,0.00018,2]
[403768827,1769529046244,-12979.36153885,0.00018,2]
[403768828,1769529046253,-5684.7064599,0.00018,2]
[403768829,1769529046262,-2706882.02006484,0.00018,2]
[403768830,1769529046280,-306.23050185,0.00018,2]
[403768831,1769529046291,-1278.6766416,0.00018,2]
[403768833,1769529046302,-268.43689077,0.00018,2]
[403768834,1769529046321,-1811.16,0.00015496,2]
[403768835,1769529046341,-6482.15712712,0.00015496,2]
[403768836,1769529046355,-509817.84627872,0.00018,2]
[403768837,1769529046365,-3493.1008247,0.00018,2]
[403768838,1769529046374,-20473.7437347,0.00018,2]
[403768839,1769529046383,-5664.1133087,0.00018,2]
[403768840,1769529046393,-151.0,0.00018,2]
[403768841,1769529046402,-1003.85001295,0.00018,2]
[403768842,1769529046412,-151.0,0.00018,2]
[403768843,1769529046422,-1967.7188663,0.00018,2]
[403768844,1769529046431,-151.0,0.00018,2]
[403768845,1769529046441,-151.0,0.00018,2]
[403768846,1769529046450,-151.0,0.00018,2]
[403768847,1769529046459,-151.0,0.00018,2]
[403768848,1769529046469,-5587.6373974,0.00018,2]
[403768849,1769529046478,-151.0,0.00018,2]
[403768850,1769529046489,-151.0,0.00018,2]
[403768851,1769529046498,-151.0,0.00018,2]
[403768852,1769529046508,-151.0,0.00018,2]
[403768853,1769529046518,-151.0,0.00018,2]
[403768854,1769529046527,-160.718716,0.00018,2]
[403768855,1769529046537,-519.0,0.00018,2]
[403768856,1769529046549,-172.1699,0.00018,2]
[403768857,1769529046558,-172.16991,0.00018,2]
[403768858,1769529046571,-172.16991,0.00018,2]
[403768859,1769529046582,-172.16991,0.00018,2]
[403768860,1769529046592,-172.16991,0.00018,2]
[403768861,1769529046602,-172.16991,0.00018,2]
[403768862,1769529046613,-151.0,0.00018,2]
[403768863,1769529046624,-151.0,0.00018,2]
[403768864,1769529046634,-151.0,0.00018,2]
[403768865,1769529046644,-517.0,0.00018,2]
[403768866,1769529046654,-151.0,0.00018,2]
[403768867,1769529046664,-187.061035,0.00018,2]
[403768868,1769529046674,-187.061035,0.00018,2]
[403768869,1769529046684,-187.061035,0.00018,2]
[403768870,1769529046694,-187.061035,0.00018,2]
[403768871,1769529046704,-302.748443,0.00018,2]
[403768872,1769529046713,-302.748443,0.00018,2]
[403768873,1769529046722,-302.748443,0.00018,2]
[403768874,1769529046732,-302.748443,0.00018,2]
[403768875,1769529046742,-337.76783,0.00018,2]
[403768876,1769529046752,-337.76783,0.00018,2]
[403768877,1769529046761,-337.76783,0.00018,2]
[403768878,1769529046771,-337.76783,0.00018,2]
[403768879,1769529046781,-151.0,0.00018,2]
[403768880,1769529046791,-151.0,0.00018,2]
[403768881,1769529046800,-500.0,0.00018028,2]
[403768882,1769529046810,-500.0,0.00018028,2]
[403768883,1769529046820,-158.93525549,0.00018028,2]
[403768884,1769529046929,-500.0,0.00018028,2]
[403768885,1769529046939,-500.0,0.00018028,2]
[403768887,1769529046948,-500.0,0.00018028,2]
[403768888,1769529046958,-500.0,0.00018028,2]
[403768889,1769529046968,-500.0,0.00018028,2]
[403768890,1769529046977,-500.0,0.00018028,2]
[403768891,1769529046986,-500.0,0.00018028,2]
[403768892,1769529046996,-500.0,0.00018028,2]
[403768893,1769529047005,-500.0,0.00018028,2]
[403768894,1769529047014,-491.31290121,0.00018028,2]
[403768895,1769529047023,-500.0,0.00018028,2]
[403768896,1769529047033,-166.66,0.00018072,2]
[403768897,1769529047042,-500.0,0.00018083,2]
[403768898,1769529047052,-500.0,0.00018083,2]
[403768899,1769529047061,-500.0,0.00018083,2]
[403768900,1769529047071,-500.0,0.00018083,2]
[403768901,1769529047080,-500.0,0.00018083,2]
[403768902,1769529047089,-500.0,0.00018083,2]
[403768903,1769529047099,-500.0,0.00018083,2]
[403768904,1769529047108,-500.0,0.00018083,2]
[403768905,1769529047117,-500.0,0.00018083,2]
[403768906,1769529047127,-500.0,0.00018083,2]
[403768907,1769529047136,-500.0,0.00018083,2]
[403768908,1769529047145,-424.79564298,0.00018083,2]
[403768909,1769529047155,-719.0,0.000181,2]
[403768910,1769529047164,-719.0,0.00018112,2]
[403768911,1769529047174,-952.63336648,0.00018122,2]
[403768912,1769529047184,-1000.0,0.0001813,2]
[403768913,1769529047194,-500.0,0.00018137,2]
[403768914,1769529047203,-500.0,0.00018137,2]
[403768915,1769529047213,-500.0,0.00018137,2]
[403768916,1769529047222,-540.31746147,0.00018137,2]
[403768917,1769529047231,-500.0,0.00018137,2]
[403768918,1769529047241,-500.0,0.00018137,2]
[403768919,1769529047251,-500.0,0.00018137,2]
[403768920,1769529047260,-500.0,0.00018137,2]
[403768921,1769529047270,-500.0,0.00018137,2]
[403768922,1769529047279,-500.0,0.00018137,2]
[403768923,1769529047289,-500.0,0.00018192,2]
[403768924,1769529047298,-500.0,0.00018192,2]
[403768925,1769529047307,-500.0,0.00018192,2]
[403768926,1769529047316,-500.0,0.00018192,2]
[403768927,1769529047325,-500.0,0.00018192,2]
[403768928,1769529047334,-282.09898654,0.00018192,2]
[403768929,1769529047343,-500.0,0.00018192,2]
[403768930,1769529047352,-500.0,0.00018192,2]
[403768931,1769529047360,-500.0,0.00018192,2]
[403768932,1769529047369,-719.0,0.00018197,2]
[403768933,1769529047378,-500.0,0.00018247,2]
[403768934,1769529047388,-500.0,0.00018247,2]
[403768935,1769529047397,-500.0,0.00018247,2]
[403768936,1769529047406,-500.0,0.00018247,2]
[403768937,1769529047415,-500.0,0.00018247,2]
[403768938,1769529047424,-534.73664133,0.00018247,2]
[403768939,1769529047433,-500.0,0.00018247,2]
[403768940,1769529047443,-551.0,0.00018247,2]
[403768941,1769529047453,-500.0,0.00018302,2]
[403768942,1769529047462,-500.0,0.00018302,2]
[403768943,1769529047472,-500.0,0.00018302,2]
[403768944,1769529047481,-500.0,0.00018302,2]
[403768945,1769529047491,-500.0,0.00018302,2]
[403768946,1769529047500,-1000.0,0.00018306,2]
[403768947,1769529047510,-587.0,0.00018334,2]
[403768948,1769529047519,-2113.8,0.00018356,2]
[403768949,1769529047529,-500.0,0.00018357,2]
[403768950,1769529047538,-500.0,0.00018357,2]
[403768951,1769529047548,-500.0,0.00018357,2]
[403768952,1769529047557,-500.0,0.00018357,2]